{"text_format":"2","workbook":"xlsx","n_sheets":1,"sheets":["Sheet 1"],"not_rendered":{"charts":0,"images":0,"macros":0,"external_links":0,"defined_names":0,"comments":0,"pivot_tables":0},"unopened":[],"bounds":{"document_bytes":16777216,"sheet_cells":100000,"run_cost":"one","rows_first":2000,"rows_last":500,"rows_between":2000,"halvings":0,"cell_chars":16384,"cell_head_chars":4096},"cells_cut":0,"cells_raw":0,"read":"whole","date_system":"1900"}

{"sheet":"Sheet 1","index":0,"n_rows":35,"n_cols":12,"rows_kept":35,"cut":false,"hidden":false,"merged":[[23,1,24,1],[25,2,25,9],[1,1,1,9],[3,1,9,1],[10,1,11,1],[12,2,12,9],[14,1,14,9],[16,1,22,1]]}
[]
[null,"WPL 2026 Auctions Co-Presenting Partner"]
[null,"Event","Platform","Type","Classification","Ad Assets","Targeting","FCT or Imp or Exp /Match or Day","No of Days / Matches","Total FCT / Impressions -10s / Total Exposures"]
[null,"WPL 25 Mega Auction","HHW+CTV","Live","Video","FCT","NA",300,1,{"$f":"H4*I4","v":300}]
[null,null,"HHW+CTV","Live","Display","SUP","ROS",4,1,4]
[null,null,"HHW","Live","Display","Fence, Frame, Social Banner","ROS",0.5,1,0.5]
[null,null,"HHW","Live","Video","Preroll","ROS",0.5,1,0.5]
[null,null,"CTV","Live","Video","Preroll","ROS",0.05,1,0.05]
[null,null,"LTV","Live","Video","FCT","NA",300,1,300]
[null,null,"LTV","Live","Display","SUP","ROS",4,1,4]
[null,"BCCI Domestic","HHW+CTV","Live","Video","FCT","NA",150,3,450]
[null,null,"LTV","Live","Video","FCT","NA",{"$f":"H11","v":150},3,450]
[null,null,"Total"]
[]
[null,"WPL 2026 Auctions Associate Partner"]
[null,"Event","Platform","Type","Classification","Ad Assets","Targeting","FCT or Imp or Exp /Match or Day","No of Days / Matches","Total FCT / Impressions -10s / Total Exposures"]
[null,"WPL 25 Mega Auction","HHW+CTV","Live","Video","FCT","NA",210,1,{"$f":"H17*I17","v":210}]
[null,null,"HHW+CTV","Live","Display","SUP","ROS",1,1,1]
[null,null,"HHW","Live","Display","Fence, Frame, Social Banner","ROS",0.25,1,0.25]
[null,null,"HHW","Live","Video","Preroll","ROS",0.3,1,0.3]
[null,null,"CTV","Live","Video","Preroll","ROS",0.03,1,0.03]
[null,null,"LTV","Live","Video","FCT","NA",210,1,210]
[null,null,"LTV","Live","Display","SUP","ROS",1,1,1]
[null,"BCCI Domestic","HHW+CTV","Live","Video","FCT","NA",120,3,{"$f":"H24*I24","v":360},null,35]
[null,null,"LTV","Live","Video","FCT","NA",{"$f":"H24","v":120},3,360,null,{"$f":"2","v":2}]
[null,null,"Total"]
[]
[]
[null,"BCCI Domestic series around WPL Auctions period"]
[null,"Event","Format","Start Date","End Date"]
[null,"SMAT","T20","2025-11-26","2025-12-18"]
[null,"W U23 T20 Trophy Elite","T20","2025-11-24","2025-12-11"]
[null,"Ranji Trophy","4/5 Day","2025-10-15","2026-01-26"]
[null,"Col. C K Nayudu Trophy","4/5 Day","2025-10-16","2026-03-12"]
[null,"List A series like Men U23 State Trophy etc","ODI","2023-11-09","2025-12-01"]